bitfinex/quotes_SOLUSD_20250601
["timestamp","ask_amount","ask_price","bid_price","bid_amount"]
[1748770804133,34.40599289,151.61,151.58,0.14216157]
[1748770804451,11.48,151.65,151.58,48.45713619]
[1748770804661,41.00027466,151.65,151.61,18.64964886]
[1748770804812,22.92599289,151.62,151.58,18.79181043]
[1748770805011,41.00027466,151.65,151.58,18.79181043]
[1748770805012,22.92599289,151.59,151.58,18.79181043]
[1748770805530,22.92599289,151.59,151.57,0.14216157]
[1748770805713,22.92599289,151.58,151.55,26.0]
[1748770805917,22.92599289,151.56,151.52,18.64964886]
[1748770806135,22.92599289,151.53,151.52,18.64964886]
[1748770806458,22.92599289,151.54,151.5,44.64964886]
[1748770806614,6.5971764,151.58,151.5,67.57564175]
[1748770806817,22.92599289,151.55,151.5,67.57564175]
[1748770807128,22.92599289,151.54,151.5,67.57564175]
[1748770807344,22.92599289,151.54,151.5,44.64964886]
[1748770807816,22.92599289,151.54,151.51,0.28432314]
[1748770808444,22.92599289,151.53,151.51,0.14216157]
[1748770809037,6.59850906,151.55,151.48,42.12]
[1748770809038,22.92599289,151.52,151.48,26.0]
[1748770809236,22.92599289,151.51,151.49,26.0]
[1748770809437,22.92599289,151.5,151.49,44.79181043]
[1748770809636,22.92599289,151.51,151.49,44.79181043]
[1748770810734,22.92599289,151.51,151.49,44.64964886]
[1748770811119,22.92599289,151.54,151.51,0.14216157]
[1748770811518,22.92599289,151.53,151.51,0.14216157]
[1748770811728,22.92599289,151.52,151.5,18.79181043]
[1748770811934,22.92599289,151.51,151.5,0.14216157]
[1748770812442,22.92599289,151.51,151.48,18.64964886]
[1748770812739,22.92599289,151.5,151.46,18.64964886]
[1748770812958,48.92599289,151.56,151.46,18.64964886]
[1748770813245,22.92599289,151.5,151.47,0.28432314]
[1748770813425,23.09468821,151.55,151.47,0.28432314]
[1748770813629,22.92599289,151.5,151.47,0.28432314]
[1748770814253,23.09468821,151.55,151.43,18.64964886]
[1748770814254,44.0692,151.53,151.43,18.64964886]
[1748770814429,22.92599289,151.47,151.43,41.57564175]
[1748770815138,22.92599289,151.47,151.44,6.8874481]
[1748770815321,22.92599289,151.46,151.44,0.28432314]
[1748770815520,22.92599289,151.47,151.44,0.28432314]
[1748770815943,22.92599289,151.47,151.44,0.14216157]
[1748770816119,22.92599289,151.49,151.45,0.14216157]
[1748770816757,18.0692,151.53,151.45,0.14216157]
[1748770817044,22.92599289,151.52,151.48,23.06815446]
[1748770817263,22.92599289,151.52,151.48,18.79181043]
[1748770817949,22.92599289,151.51,151.48,0.14216157]
[1748770818345,22.92599289,151.51,151.48,18.79181043]
[1748770818542,22.92599289,151.51,151.48,25.39324089]
[1748770819050,22.92599289,151.51,151.48,0.14216157]
[1748770819251,22.92599289,151.49,151.46,18.64964886]
[1748770819549,22.92599289,151.48,151.44,18.64964886]
[1748770819949,22.92599289,151.48,151.45,0.14216157]
[1748770820125,22.92599289,151.46,151.44,18.64964886]
[1748770820447,23.09926081,151.52,151.44,18.64964886]
[1748770820448,22.92599289,151.47,151.44,18.64964886]
[1748770821038,22.92599289,151.47,151.45,0.14216157]
[1748770821240,22.92599289,151.49,151.46,6.60240327]
[1748770822325,22.92599289,151.47,151.44,25.25284046]
[1748770822558,22.92599289,151.46,151.44,18.64964886]
[1748770822854,22.92599289,151.45,151.43,18.64964886]
[1748770823656,6.0533,151.49,151.43,0.14216157]
[1748770823864,22.92599289,151.47,151.43,0.28432314]
[1748770824039,6.0533,151.49,151.43,0.28432314]
[1748770824040,22.92599289,151.49,151.45,0.28432314]
[1748770824441,22.92599289,151.48,151.45,6.88701259]
[1748770826465,22.92599289,151.48,151.45,0.28432314]
[1748770826650,6.60067275,151.5,151.45,6.88713245]
[1748770826952,22.92599289,151.48,151.45,6.88713245]
[1748770827155,22.92599289,151.46,151.44,0.14216157]
[1748770827361,22.92599289,151.47,151.45,18.64964886]
[1748770827733,22.92599289,151.48,151.46,0.14216157]
[1748770827942,22.92599289,151.52,151.48,18.79181043]
[1748770828340,22.92599289,151.51,151.48,0.14216157]
[1748770828653,22.92599289,151.5,151.48,0.14216157]
[1748770828861,22.92599289,151.49,151.48,0.14216157]
[1748770829173,22.92599289,151.49,151.46,18.64964886]
[1748770829347,22.92599289,151.51,151.47,18.79181043]
[1748770829537,22.92599289,151.5,151.47,18.79181043]
[1748770829739,6.5997888,151.52,151.45,0.14216157]
[1748770829740,22.92599289,151.49,151.45,0.14216157]
[1748770829943,22.92599289,151.48,151.46,0.14216157]
[1748770830141,22.92599289,151.48,151.45,18.64964886]
[1748770830454,22.92599289,151.5,151.46,0.28432314]
[1748770830953,22.92599289,151.49,151.46,0.28432314]
[1748770831131,22.92599289,151.48,151.46,0.14216157]
[1748770832381,22.92599289,151.49,151.46,0.14216157]
[1748770833245,22.92599289,151.52,151.48,18.79181043]
[1748770834246,29.52596887,151.52,151.48,18.79181043]
[1748770834447,22.92599289,151.51,151.48,18.79181043]
[1748770835143,22.92599289,151.5,151.48,0.14216157]
[1748770835567,22.92599289,151.5,151.47,0.14216157]
[1748770836166,22.92599289,151.51,151.47,0.14216157]
[1748770836351,29.52639078,151.51,151.47,0.14216157]
[1748770838372,22.92599289,151.5,151.47,0.14216157]
[1748770839249,6.59822227,151.56,151.49,23.21031603]
[1748770839475,12.65217098,151.61,151.54,18.79181043]
[1748770839661,22.92599289,151.58,151.54,18.79181043]
[1748770839859,22.92599289,151.56,151.53,0.14216157]
[1748770840775,21.91994474,151.57,151.53,0.14216157]
[1748770841788,15.32215582,151.56,151.53,0.14216157]
[1748770842256,21.92059136,151.56,151.53,0.14216157]
[1748770842682,29.58587075,151.56,151.53,0.14216157]
[1748770842868,22.98743521,151.56,151.53,0.14216157]
[1748770843258,29.58564526,151.56,151.53,0.14216157]
[1748770844870,22.98743521,151.54,151.5,18.79181043]
[1748770845070,22.98743521,151.52,151.5,18.64964886]
[1748770845363,22.98743521,151.51,151.46,18.64964886]
[1748770845680,22.98743521,151.5,151.47,0.28432314]
[1748770846187,7.8848,151.55,151.45,65.08743521]
[1748770846188,22.98743521,151.49,151.45,18.64964886]
[1748770846366,22.98743521,151.49,151.46,0.28432314]
[1748770846779,22.98743521,151.49,151.45,44.64964886]
[1748770847096,22.98743521,151.49,151.46,0.28432314]
[1748770847601,7.8848,151.55,151.47,18.64964886]
[1748770847602,6.5997888,151.52,151.47,18.64964886]
[1748770847760,29.58722401,151.52,151.48,18.933972]
[1748770848285,22.98743521,151.5,151.48,0.28432314]
[1748770848783,22.98743521,151.49,151.47,18.64964886]
[1748770849132,22.98743521,151.48,151.47,18.79181043]
[1748770849306,22.98743521,151.48,151.44,1.6018]
[1748770849503,23.10078541,151.51,151.45,18.64964886]
[1748770849504,22.98743521,151.47,151.45,18.64964886]
[1748770850928,29.58944695,151.47,151.45,18.64964886]
[1748770851231,22.98743521,151.48,151.46,0.14216157]
[1748770852901,22.98743521,151.47,151.45,18.64964886]
[1748770853420,6.60191877,151.48,151.45,18.64964886]
[1748770853714,22.98743521,151.47,151.45,18.64964886]
[1748770853923,22.98743521,151.46,151.45,18.79181043]
[1748770854134,22.98743521,151.46,151.42,26.0]
[1748770854414,22.98743521,151.44,151.41,18.64964886]
[1748770854587,22.98743521,151.44,151.42,0.14216157]
[1748770854788,22.98743521,151.44,151.41,18.64964886]
[1748770855418,29.59031984,151.45,151.42,0.14216157]
[1748770855910,22.98743521,151.45,151.42,0.14216157]
[1748770856886,29.59057525,151.45,151.42,0.14216157]
[1748770857315,22.98743521,151.44,151.41,18.64964886]
[1748770857619,6.60196738,151.47,151.42,0.28432314]
[1748770857796,22.98743521,151.46,151.42,0.28432314]
[1748770858607,22.98743521,151.45,151.42,0.28432314]
[1748770858805,22.98743521,151.46,151.42,0.28432314]
[1748770859221,11.46,151.5,151.45,18.64964886]
[1748770859517,22.98743521,151.51,151.47,18.64964886]
[1748770859696,22.98743521,151.5,151.47,18.64964886]
[1748770860418,22.98743521,151.48,151.43,26.0]
[1748770860615,22.98743521,151.46,151.44,18.79181043]
[1748770860921,22.98743521,151.45,151.42,0.14216157]
[1748770861103,22.98743521,151.45,151.42,0.28432314]
[1748770861300,29.59038779,151.45,151.42,0.28432314]
[1748770861608,22.98743521,151.45,151.42,0.14216157]
[1748770861795,29.59029799,151.45,151.42,0.14216157]
[1748770862303,22.98743521,151.46,151.42,0.14216157]
[1748770863023,22.98743521,151.47,151.42,29.87585063]
[1748770863391,29.58946311,151.47,151.42,29.87585063]
[1748770863918,22.98743521,151.46,151.42,0.28432314]
[1748770864095,22.98743521,151.46,151.42,6.88833562]
[1748770864694,15.34108376,151.48,151.44,0.28432314]
[1748770865301,15.34108376,151.48,151.44,0.14216157]
[1748770865609,15.34108376,151.45,151.42,0.28432314]
[1748770866220,15.34108376,151.45,151.41,18.64964886]
[1748770867101,15.34108376,151.45,151.42,0.14216157]
[1748770867617,15.34108376,151.44,151.38,11.46]
[1748770867847,15.34108376,151.44,151.37,0.08061566]
[1748770868118,15.34108376,151.38,151.37,0.08061566]
[1748770869627,37.28805997,151.38,151.37,0.08061566]
[1748770869809,79.36805997,151.38,151.37,0.08061566]
[1748770870130,64.02697621,151.38,151.37,0.08061566]
[1748770870346,90.02697621,151.38,151.37,0.08061566]
[1748770870496,121.88279111,151.38,151.29,18.64964886]
[1748770870701,23.06288444,151.3,151.27,1.6323]
[1748770871335,23.06288444,151.29,151.24,41.7125333]
[1748770871517,11.46,151.34,151.23,24.69518444]
[1748770871518,23.06288444,151.28,151.23,24.69518444]
[1748770871748,11.46,151.34,151.23,24.69518444]
[1748770871749,23.06288444,151.27,151.23,1.6323]
[1748770871947,6.60984543,151.29,151.23,1.6323]
[1748770871948,23.06288444,151.26,151.23,1.6323]
[1748770872117,23.06288444,151.26,151.24,18.64964886]
[1748770872319,23.06288444,151.25,151.23,18.64964886]
[1748770872524,23.06288444,151.26,151.23,18.64964886]
[1748770872740,23.06288444,151.28,151.23,41.7125333]
[1748770873058,23.06288444,151.32,151.27,23.06288444]
[1748770873226,23.06288444,151.31,151.26,41.7125333]
[1748770873426,23.06288444,151.3,151.26,41.7125333]
[1748770873637,23.06288444,151.3,151.26,18.64964886]
[1748770873840,23.06288444,151.3,151.26,25.26040318]
[1748770875152,23.06288444,151.29,151.26,25.26040318]
[1748770875851,23.06288444,151.29,151.26,18.64964886]
[1748770876149,23.06288444,151.28,151.25,18.64964886]
[1748770876335,23.06288444,151.29,151.25,41.7125333]
[1748770876726,23.06288444,151.29,151.25,48.32389483]
[1748770876932,23.06288444,151.29,151.25,25.26101039]
[1748770877146,16.52049639,151.33,151.24,26.0]
[1748770877339,23.06288444,151.26,151.24,26.0]
[1748770877540,23.06288444,151.27,151.24,26.0]
[1748770877932,23.12979116,151.32,151.24,26.0]
[1748770878133,23.06288444,151.27,151.24,26.0]
[1748770878334,23.06288444,151.27,151.23,18.64964886]
[1748770878738,23.06288444,151.26,151.22,34.41827376]
[1748770878936,6.60720185,151.35,151.26,44.64964886]
[1748770879140,23.06288444,151.3,151.26,44.64964886]
[1748770879343,23.06288444,151.27,151.23,18.79181043]
[1748770879551,23.06288444,151.26,151.23,18.79181043]
[1748770880060,23.06288444,151.27,151.23,18.79181043]
[1748770880265,23.06288444,151.26,151.22,8.41827376]
[1748770880444,23.06288444,151.25,151.22,15.03108875]
[1748770881058,23.06288444,151.29,151.23,18.64964886]
[1748770881059,23.06288444,151.26,151.23,18.64964886]
[1748770881633,23.06288444,151.27,151.23,18.64964886]
[1748770882463,23.06288444,151.28,151.24,0.28432314]
[1748770882630,11.46,151.3,151.27,41.99685644]
[1748770882827,34.52288444,151.34,151.28,6.61025912]
[1748770883063,11.46,151.34,151.3,41.7125333]
[1748770883232,11.46,151.34,151.31,23.06288444]
[1748770883928,34.52288444,151.34,151.29,0.28432314]
[1748770884227,34.52288444,151.34,151.31,18.64964886]
[1748770884427,11.46,151.34,151.3,41.7125333]
[1748770884835,34.52288444,151.34,151.3,18.64964886]
[1748770885030,23.06288444,151.33,151.3,18.64964886]
[1748770885243,34.52288444,151.34,151.3,18.64964886]
[1748770885657,34.52288444,151.34,151.3,25.25899432]
[1748770885836,34.52288444,151.34,151.3,48.32187876]
[1748770886236,34.52288444,151.34,151.3,18.64964886]
[1748770886630,23.06288444,151.33,151.3,18.64964886]
[1748770886836,34.52288444,151.34,151.3,18.64964886]
[1748770888452,41.13057428,151.34,151.3,18.64964886]
[1748770889052,23.06288444,151.33,151.3,18.64964886]
[1748770889258,23.06288444,151.32,151.28,65.18288444]
[1748770889447,23.06288444,151.32,151.29,18.64964886]
[1748770889648,11.46,151.34,151.28,18.64964886]
[1748770889649,23.06288444,151.3,151.28,18.64964886]
[1748770891138,23.06288444,151.29,151.24,18.64964886]
[1748770891342,6.2556,151.32,151.24,48.32413994]
[1748770891343,6.60894851,151.31,151.24,48.32413994]
[1748770891536,23.06288444,151.3,151.26,18.64964886]
[1748770891967,23.06288444,151.31,151.27,18.64964886]
[1748770892261,18.06778155,151.34,151.28,18.64964886]
[1748770892562,23.06288444,151.32,151.28,18.64964886]
[1748770892939,23.06288444,151.31,151.28,18.64964886]
[1748770893335,23.06288444,151.31,151.28,25.25986249]
[1748770894272,23.06288444,151.32,151.28,25.25986249]
[1748770894446,23.06288444,151.32,151.29,0.28432314]
[1748770894647,23.06288444,151.33,151.29,0.28432314]
[1748770895165,23.06288444,151.32,151.29,0.28432314]
[1748770897248,23.06288444,151.32,151.28,18.64964886]
[1748770897459,23.06288444,151.31,151.28,18.64964886]
[1748770898753,29.67185076,151.31,151.28,18.64964886]
[1748770899577,23.06288444,151.31,151.28,18.64964886]
[1748770900161,29.6719022,151.31,151.28,18.64964886]
[1748770900775,21.98390358,151.31,151.28,18.64964886]
[1748770901075,15.37488582,151.31,151.28,18.64964886]
[1748770901955,6.60632886,151.37,151.31,0.28432314]
[1748770902276,6.60632886,151.37,151.32,15.37488582]
[1748770902477,15.37488582,151.36,151.32,15.37488582]
[1748770902665,11.44,151.38,151.34,34.02453468]
[1748770902666,26.81488582,151.38,151.34,34.02453468]
[1748770902867,15.37488582,151.35,151.31,15.37488582]
[1748770903074,15.37488582,151.34,151.32,18.64964886]
[1748770903259,15.37488582,151.33,151.25,1.534]
[1748770903567,42.92318582,151.36,151.25,1.534]
[1748770903568,15.37488582,151.28,151.25,1.534]
[1748770903876,15.37488582,151.27,151.22,65.89315958]
[1748770904172,15.37488582,151.27,151.23,44.64964886]
[1748770904655,15.37488582,151.27,151.23,18.64964886]
[1748770904861,15.37488582,151.26,151.23,18.64964886]
[1748770905368,23.1313198,151.31,151.23,18.64964886]
[1748770905570,15.37488582,151.27,151.23,18.64964886]
[1748770906252,16.52237129,151.31,151.23,18.64964886]
[1748770906448,15.37488582,151.27,151.23,18.64964886]
[1748770907567,21.98601596,151.27,151.23,18.64964886]
[1748770908461,15.37488582,151.26,151.23,18.64964886]
[1748770908861,21.98601596,151.27,151.23,18.64964886]
[1748770909070,21.98470801,151.29,151.25,18.64964886]
[1748770909879,15.37488582,151.28,151.24,0.28432314]
[1748770910181,15.37488582,151.28,151.24,18.933972]
[1748770910999,21.98525555,151.28,151.24,26.28432314]
[1748770911196,21.98525555,151.28,151.25,18.64964886]
[1748770911495,21.98518142,151.28,151.25,18.64964886]
[1748770911864,15.37488582,151.3,151.26,0.28432314]
[1748770912661,11.44,151.32,151.28,0.28432314]
[1748770912983,26.81488582,151.32,151.28,0.28432314]
[1748770913293,26.81488582,151.32,151.29,18.64964886]
[1748770913797,15.37488582,151.32,151.29,18.64964886]
[1748770914568,15.37488582,151.3,151.22,8.41827376]
[1748770914756,15.37488582,151.27,151.25,18.64964886]
[1748770915163,15.37488582,151.28,151.25,18.64964886]
[1748770916866,15.37488582,151.28,151.25,25.26110904]
[1748770919366,15.37488582,151.27,151.25,18.64964886]
[1748770920287,6.60894851,151.31,151.25,18.64964886]
[1748770920494,15.37488582,151.27,151.25,18.64964886]
[1748770921375,15.37488582,151.26,151.22,41.03106366]
[1748770921680,15.37488582,151.25,151.23,18.64964886]
[1748770921887,15.37488582,151.24,151.23,18.64964886]
[1748770923172,15.37488582,151.25,151.23,18.64964886]
[1748770923370,6.61041069,151.28,151.23,25.26205282]
[1748770923681,15.37488582,151.27,151.24,0.28432314]
[1748770923880,22.92820502,151.34,151.26,0.28432314]
[1748770924217,15.37488582,151.3,151.26,15.65920896]
[1748770924985,15.37488582,151.3,151.28,18.64964886]
[1748770925186,15.37488582,151.31,151.28,18.64964886]
[1748770926195,15.37488582,151.3,151.27,18.64964886]
[1748770926395,15.37488582,151.29,151.26,18.64964886]
[1748770926703,15.37488582,151.3,151.26,18.64964886]
[1748770926894,15.37488582,151.3,151.26,34.02453468]
[1748770927287,15.37488582,151.3,151.26,40.63561799]
[1748770928015,11.46,151.32,151.26,18.64964886]
[1748770928311,15.37488582,151.3,151.26,18.64964886]
[1748770929309,11.46,151.32,151.29,0.28432314]
[1748770929510,15.37488582,151.31,151.27,21.98554853]
[1748770929687,52.81488582,151.36,151.27,21.98554853]
[1748770929688,52.81488582,151.36,151.28,18.64964886]
[1748770929884,15.37488582,151.32,151.28,18.64964886]
[1748770930082,15.37488582,151.33,151.28,15.37488582]
[1748770930318,15.37488582,151.33,151.29,0.28432314]
[1748770930614,11.44,151.36,151.32,15.37488582]
[1748770930916,15.37488582,151.35,151.3,15.37488582]
[1748770931222,15.37488582,151.33,151.29,18.933972]
[1748770931594,15.37488582,151.33,151.29,40.9185963]
[1748770931996,26.81488582,151.36,151.32,18.64964886]
[1748770932194,15.37488582,151.34,151.3,0.28432314]
[1748770932401,15.37488582,151.33,151.28,90.06500713]
[1748770932605,15.37488582,151.34,151.29,34.30885782]
[1748770933322,15.37488582,151.34,151.3,6.60938532]
[1748770933527,15.37488582,151.35,151.31,18.64964886]
[1748770933699,18.04696185,151.36,151.31,18.64964886]
[1748770933900,26.81488582,151.36,151.31,15.37488582]
[1748770934314,26.81488582,151.36,151.31,15.65920896]
[1748770934631,15.37488582,151.34,151.3,0.28432314]
[1748770935398,21.98211408,151.35,151.31,18.64964886]
[1748770936102,11.44,151.36,151.31,18.64964886]
[1748770936302,15.37488582,151.35,151.3,22.26858205]
[1748770936925,15.37488582,151.34,151.3,18.933972]
[1748770937605,21.98241469,151.35,151.3,22.2685774]
[1748770937820,11.44,151.36,151.32,0.28432314]
[1748770938013,26.81488582,151.36,151.32,0.28432314]
[1748770938395,11.44,151.36,151.33,18.64964886]
[1748770939029,101.10210004,151.41,151.35,15.37488582]
[1748770939346,116.47698586,151.41,151.37,18.64964886]
[1748770939493,123.08170538,151.41,151.37,18.64964886]
[1748770939698,123.08170538,151.41,151.36,15.37488582]
[1748770939906,27.92170538,151.41,151.37,18.64964886]
[1748770940305,15.37488582,151.38,151.32,1.5394]
[1748770940548,15.37488582,151.34,151.32,1.5394]
[1748770941438,15.37488582,151.34,151.31,18.64964886]
[1748770941610,21.98263146,151.34,151.31,18.64964886]
[1748770942020,15.37488582,151.34,151.31,18.64964886]
[1748770942325,11.44,151.37,151.31,15.65920896]
[1748770942512,15.37488582,151.36,151.31,15.65920896]
[1748770943233,11.44,151.37,151.33,34.30885782]
[1748770943406,15.37488582,151.39,151.35,0.28432314]
[1748770943601,21.98017028,151.4,151.36,18.64964886]
[1748770943810,15.37488582,151.4,151.36,18.64964886]
[1748770944326,21.98023436,151.4,151.36,18.64964886]
[1748770944828,23.0345204,151.38,151.35,0.28432314]
[1748770945507,23.0345204,151.38,151.34,44.64964886]
[1748770945707,29.64084926,151.37,151.34,18.64964886]
[1748770946520,23.0345204,151.35,151.33,26.0]
[1748770946702,23.0345204,151.36,151.33,26.0]
[1748770946904,23.0345204,151.36,151.31,49.0345204]
[1748770947107,23.0345204,151.36,151.32,0.28432314]
[1748770947521,29.64172225,151.35,151.32,18.64964886]
[1748770947724,29.64084926,151.37,151.32,41.68416926]
[1748770948223,23.0345204,151.33,151.28,44.64964886]
[1748770948526,23.0345204,151.32,151.28,44.64964886]
[1748770948724,23.0345204,151.33,151.28,23.0345204]
[1748770948901,23.0345204,151.33,151.29,18.64964886]
[1748770949104,23.0345204,151.33,151.3,0.28432314]
[1748770949305,23.0345204,151.34,151.3,0.28432314]
[1748770949507,29.64235742,151.34,151.3,0.28432314]
[1748770950608,6.60733339,151.35,151.31,18.64964886]
[1748770950810,23.0345204,151.34,151.31,18.64964886]
[1748770951012,6.2053,151.36,151.34,0.28432314]
[1748770951217,6.2053,151.36,151.35,18.64964886]
[1748770951423,6.2053,151.36,151.34,0.28432314]
[1748770952526,6.2053,151.36,151.35,18.64964886]
[1748770953719,6.2053,151.36,151.34,18.933972]
[1748770954319,6.60642009,151.37,151.34,18.933972]
[1748770954718,29.64054329,151.38,151.34,18.933972]
[1748770955935,29.64010734,151.39,151.35,18.64964886]
[1748770956313,23.0345204,151.39,151.35,18.64964886]
[1748770956517,6.60548124,151.39,151.35,18.64964886]
[1748770956716,23.0345204,151.39,151.35,18.64964886]
[1748770957320,23.0345204,151.38,151.34,18.933972]
[1748770958110,29.64066983,151.38,151.34,18.933972]
[1748770958520,23.0345204,151.37,151.34,18.64964886]
[1748770958829,29.64066983,151.38,151.34,18.64964886]
[1748770960034,6.60501981,151.4,151.35,18.64964886]
[1748770960215,23.0345204,151.39,151.35,18.64964886]
[1748770961023,23.0345204,151.38,151.34,0.28432314]
[1748770961223,23.0345204,151.38,151.34,18.933972]
[1748770961434,6.60501981,151.4,151.34,18.933972]
[1748770961729,23.0345204,151.38,151.34,18.933972]
[1748770961929,29.64033137,151.39,151.35,18.64964886]
[1748770963336,23.0345204,151.38,151.34,18.933972]
[1748770963635,5.94210004,151.41,151.37,18.64964886]
[1748770963837,23.0345204,151.4,151.37,18.64964886]
[1748770964021,6.60471311,151.41,151.35,29.92566786]
[1748770964022,6.60471311,151.41,151.36,18.64964886]
[1748770964217,23.0345204,151.4,151.36,18.64964886]
[1748770964846,11.42,151.42,151.36,34.00588383]
[1748770965049,26.77623497,151.42,151.39,18.64964886]
[1748770965345,15.35623497,151.42,151.37,15.64055811]
[1748770965729,15.35623497,151.42,151.39,18.933972]
[1748770965931,15.35623497,151.43,151.39,25.53916277]
[1748770966635,15.35623497,151.43,151.39,18.933972]
[1748770966949,15.35623497,151.42,151.39,18.933972]
[1748770967820,21.96055384,151.42,151.38,18.933972]
[1748770968020,21.96055384,151.42,151.38,18.64964886]
[1748770968329,21.96055384,151.42,151.34,34.29020697]
[1748770968330,15.35623497,151.39,151.34,34.29020697]
[1748770968531,6.60431887,151.42,151.36,18.79181043]
[1748770968732,15.35623497,151.39,151.34,15.35623497]
[1748770969044,15.35623497,151.39,151.36,0.28432314]
[1748770969453,21.96162203,151.4,151.36,0.28432314]
[1748770969637,6.60538706,151.4,151.36,0.28432314]
[1748770969834,21.96162203,151.4,151.36,0.28432314]
[1748770971948,15.35623497,151.39,151.35,18.64964886]
[1748770972136,6.60538706,151.4,151.33,26.0]
[1748770972137,15.35623497,151.36,151.33,26.0]
[1748770972335,15.35623497,151.36,151.34,18.64964886]
[1748770973226,21.9631277,151.36,151.34,18.64964886]
[1748770974357,15.35623497,151.36,151.34,18.64964886]
[1748770975046,15.35623497,151.37,151.34,18.64964886]
[1748770975954,42.02,151.43,151.37,18.64964886]
[1748770975955,6.60371128,151.43,151.37,18.64964886]
[1748770976144,21.95994625,151.43,151.38,15.64055811]
[1748770976341,6.60371128,151.43,151.38,15.64055811]
[1748770976539,11.42,151.44,151.39,18.64964886]
[1748770976846,11.42,151.44,151.39,34.00588383]
[1748770977051,26.77623497,151.44,151.39,34.00588383]
[1748770977361,26.77623497,151.44,151.39,40.61108555]
[1748770977732,11.42,151.44,151.4,15.64055811]
[1748770978238,15.35623497,151.46,151.4,18.933972]
[1748770978441,15.35623497,151.46,151.41,15.35623497]
[1748770978654,23.01667217,151.46,151.41,23.01667217]
[1748770979461,29.61918441,151.46,151.41,23.01667217]
[1748770980494,6.60251224,151.46,151.41,23.01667217]
[1748770980763,23.01667217,151.45,151.41,23.01667217]
[1748770980944,23.01667217,151.45,151.4,41.95064417]
[1748770981563,23.01667217,151.45,151.41,23.01667217]
[1748770982060,23.01667217,151.42,151.39,18.64964886]
[1748770982436,23.01667217,151.4,151.33,23.01667217]
[1748770982770,23.01667217,151.37,151.32,83.02502851]
[1748770982942,23.01667217,151.37,151.33,26.0]
[1748770983141,23.01667217,151.37,151.34,18.933972]
[1748770983636,23.01667217,151.35,151.3,23.01667217]
[1748770983837,23.01667217,151.34,151.29,29.62649436]
[1748770984240,23.01667217,151.34,151.3,18.933972]
[1748770984442,23.01667217,151.34,151.3,18.64964886]
[1748770984853,29.62439202,151.34,151.3,18.64964886]
[1748770985962,29.62439202,151.34,151.29,55.62649436]
[1748770985963,23.01667217,151.33,151.29,18.64964886]
[1748770986151,23.01667217,151.33,151.3,0.28432314]
[1748770986352,23.01667217,151.33,151.3,0.14216157]
[1748770986664,23.01667217,151.33,151.29,18.64964886]
[1748770986864,23.01667217,151.31,151.25,6.61117337]
[1748770987067,23.01667217,151.28,151.25,18.64964886]
[1748770987243,23.01667217,151.26,151.22,6.69773594]
[1748770987651,23.01667217,151.26,151.23,44.933972]
[1748770987953,23.01667217,151.25,151.22,0.08494043]
[1748770988342,23.01667217,151.25,151.24,18.64964886]
[1748770988778,23.01667217,151.25,151.22,18.73458929]
[1748770989673,23.01667217,151.25,151.22,25.34740786]
[1748770989973,11.4,151.3,151.22,25.34740786]
[1748770989974,23.01667217,151.26,151.22,25.34740786]
[1748770990344,11.4,151.3,151.23,23.30099531]
[1748770990557,23.01667217,151.29,151.25,0.28432314]
[1748770990760,23.01667217,151.32,151.27,41.8084826]
[1748770991154,11.4,151.34,151.29,18.79181043]
[1748770991363,34.41667217,151.34,151.29,41.8084826]
[1748770991759,34.41667217,151.34,151.31,18.64964886]
[1748770992555,11.4,151.34,151.31,18.64964886]
[1748770992869,11.4,151.34,151.3,41.8084826]
[1748770993351,11.4,151.34,151.3,18.79181043]
[1748770993542,34.41667217,151.34,151.3,18.79181043]
[1748770993742,34.41667217,151.34,151.27,18.64964886]
[1748770993743,23.01667217,151.31,151.27,18.64964886]
[1748770993969,23.01667217,151.3,151.27,18.64964886]
[1748770995871,23.01667217,151.31,151.27,25.26019231]
[1748770996068,23.01667217,151.32,151.27,48.27686448]
[1748770996252,23.01667217,151.33,151.29,18.64964886]
[1748770996446,34.41667217,151.34,151.29,41.66632103]
[1748770996646,11.4,151.34,151.31,18.64964886]
[1748770996969,129.53667217,151.38,151.33,41.66632103]
[1748770997148,23.01667217,151.37,151.33,41.66632103]
[1748770997354,23.01667217,151.35,151.33,18.64964886]
[1748770997758,23.01667217,151.37,151.33,48.27402584]
[1748770997953,34.41667217,151.38,151.33,48.27402584]
[1748770998153,23.01667217,151.36,151.33,18.64964886]
[1748770998461,18.00596814,151.38,151.32,18.933972]
[1748770998662,23.01667217,151.36,151.32,18.64964886]
[1748770998870,23.01667217,151.34,151.3,18.933972]
[1748770999372,23.01667217,151.33,151.3,18.64964886]
[1748770999750,23.01667217,151.33,151.29,18.79181043]
[1748770999954,23.01667217,151.33,151.29,25.40158957]
[1748771000855,23.01667217,151.33,151.29,18.79181043]
[1748771001050,23.01667217,151.33,151.29,25.40158478]
[1748771001252,23.01667217,151.33,151.29,18.79181043]
[1748771002077,23.01667217,151.32,151.29,18.64964886]
[1748771002373,23.01667217,151.31,151.29,18.64964886]
[1748771002671,23.01667217,151.32,151.29,18.64964886]
[1748771003879,29.60416108,151.32,151.29,18.64964886]